Cogmind - Beta 11 X7 @@@ ROGUE MODE // 2021.09.19 @ 18:09:30 Player: Plexion Result: Self-destructed Performance ------------- Evolutions (3) 1500 Regions Visited (8) 1600 Robots Destroyed (137) 685 Value Destroyed (4165) 4165 Prototype IDs (4) 80 Alien Tech Used (0) 0 Bonus (2505) 2505 TOTAL SCORE: 10535 Bonus ------- High Alert Combat Kills 860 Follower Combat Kills 405 Entered Garrisons 400 Used RIF Installer 1000 Friendly Fire -160 Cogmind --------- Core Integrity 700/700 Matter 216/300 Energy 160/160 System Corruption 0% Temperature Cool (0) Movement Walking (280) Ox2 Location -7/Factory Parts ------- > --- POWER (1) -------- Light Nuclear Core > --- PROPULSION (3) --- Aluminum Leg Improved Aluminum Leg Carbon-fiber Leg > --- UTILITY (7) ------ Heat Sink Improved Heat Sink Huge Storage Unit Improved Core Shielding Light Armor Plating > --- WEAPON (2) ------- Advanced Beam Cannon Advanced Beam Cannon > --- INVENTORY (25) --- Improved Heat Sink Medium Storage Unit Relay Coupler [NC] (26) Relay Coupler [NC] (21) Relay Coupler [NC] (24) Relay Coupler [Swarmer] (39) Relay Coupler [Grunt] (24) Relay Coupler [Sentry] (19) Relay Coupler [Sentry] (23) Advanced Assault Cannon Advanced Assault Cannon Rocket Launcher Rocket Launcher Mini Grenade Launcher Datajack Plasma Cutter Katana Peak State ------------ > --- POWER ------------ Cold Fusion Reactor > --- PROPULSION ------- Wheel Wheel Wheel > --- UTILITY ---------- Cooling System Huge Storage Unit Hardened Medium Armor Plating Relay Coupler [Grunt] Relay Coupler [Heavy] > --- WEAPON ----------- Advanced Beam Cannon Advanced Beam Cannon > --- INVENTORY -------- Light Treads Light Treads Light Treads Medium Storage Unit Relay Coupler [NC] Relay Coupler [NC] Relay Coupler [Sentry] Advanced Beam Cannon Advanced Assault Cannon Advanced Assault Cannon Rocket Launcher Rocket Launcher Datajack Plasma Cutter [Rating: 32] Favorites ----------- Power Cold Fusion Reactor Engine Ion Engine Power Core Light Nuclear Core Reactor Cold Fusion Reactor Propulsion Compact Wheel Treads Light Treads Leg Improved Aluminum Leg Wheel Compact Wheel Utility Huge Storage Unit Device Cooling System Storage Huge Storage Unit Hackware Relay Coupler [Grunt] Protection Hardened Light Armor Plating Weapon Advanced Beam Cannon Energy Gun Heavy EM Pulse Gun Energy Cannon Advanced Beam Cannon Ballistic Gun Assault Rifle Ballistic Cannon Advanced Assault Cannon Launcher Rocket Launcher Special Melee Weapon Datajack Build | -11 -10 -10 -9 -9 -9 -8 -8 -7 ------- Run | Scr Mat Min Mat Sto Gar Mat Gar Fac Slots Evolved 6 | . . . 2 . . 2 . 2 Power . | . . . . . . . . . Propulsion 1 | . . . . . . 1 . . Utility 5 | . . . 2 . . 1 . 2 Weapon . | . . . . . . . . . Parts Attached 107 | 6 8 7 8 20 4 29 25 . Power 5 | 1 1 . . 2 . . 1 . Engine 3 | 1 1 . . 1 . . . . Core 1 | . . . . . . . 1 . Reactor 1 | . . . . 1 . . . . Propulsion 27 | 2 1 4 1 4 . 7 8 . Treads 10 | . . 2 . 2 . 4 2 . Leg 6 | . . . . . . . 6 . Wheel 11 | 2 1 2 1 2 . 3 . . Hover . | . . . . . . . . . Flight . | . . . . . . . . . Utility 25 | 1 1 . . 7 2 7 7 . Device 6 | . . . . 3 . . 3 . Storage 3 | 1 . . . 1 1 . . . Processor . | . . . . . . . . . Hackware 3 | . . . . . . 3 . . Protection 13 | . 1 . . 3 1 4 4 . Artifact . | . . . . . . . . . Weapon 50 | 2 5 3 7 7 2 15 9 . Energy Gun 3 | . 2 1 . . . . . . Energy Cannon 17 | . . . 1 4 1 8 3 . Ballistic Gun 11 | 2 2 1 5 1 . . . . Ballistic Cannon 3 | . . . . . . . 3 . Launcher 12 | . 1 1 1 2 1 4 2 . Special Weapon . | . . . . . . . . . Impact Weapon . | . . . . . . . . . Slashing Weapon . | . . . . . . . . . Piercing Weapon . | . . . . . . . . . Special Melee Weapon 4 | . . . . . . 3 1 . Unidentified Prototypes 4 | . . . 1 3 . . . . Corrupted Parts 1 | . . . . . . . 1 . System Corruption 4 | . . . . . . . 4 . Parts Lost 24 | . 2 2 . 1 1 6 12 . Power 2 | . 1 . . . . . 1 . Propulsion 8 | . . 1 . 1 . 2 4 . Utility 10 | . . . . . 1 3 6 . Weapon 4 | . 1 1 . . . 1 1 . Highest Loss Streak 4 | . 1 2 . 1 1 3 4 . Average Slot Usage (%) 89 | . 90 100 77 96 98 90 83 . Engine 4 | . 14 14 11 6 . . . . Core 1 | . . . . . . . 4 . Reactor 4 | . . . . 4 11 9 1 . Treads 3 | . . 5 . 6 . 9 3 . Leg 6 | . . . . . . . 19 . Wheel 13 | . 28 22 22 13 22 15 2 . Device 9 | . . . . 19 13 9 6 . Storage 10 | . 14 14 11 11 11 9 9 . Hackware 1 | . . . . . . 7 1 . Protection 13 | . 4 14 11 11 18 11 16 . Energy Cannon 11 | . . . . 18 21 16 7 . Ballistic Gun 4 | . 17 17 21 3 . . . . Ballistic Cannon 2 | . . . . . . . 7 . Naked Turns . | . . . . . . . . . Heaviest Build 113 | 14 17 17 17 45 112 113 113 . Greatest Support 60 | 32 32 40 32 40 26 60 41 . Greatest Overweight (x) 11 | . . . . 4 4 11 7 . Average Overweight (x) 1 | . . . . . 2 3 2 . Largest Inventory Capacity 25 | 8 8 8 8 10 25 25 25 . Average Capacity 16 | 6 8 8 8 9 16 25 25 . Most Carried 19 | 4 7 6 8 10 15 17 19 . Average Carried 11 | 2 5 5 7 9 10 13 16 . Final Capacity 25 | 8 8 8 8 10 25 25 25 25 Final Carried 17 | 4 6 5 8 10 15 13 17 17 Class Distribution -------------------- 59% | Mutant 40% | Bothacker-Mutant Dominant Class ---------------- Mutant | -10/Materials Mutant | -10/Mines Mutant | -9/Materials Mutant | -9/Storage Mutant | -9/Garrison Bothacker-Mutant | -8/Materials Bothacker-Mutant | -8/Garrison Bothacker-Mutant | -7/Factory Resources | -11 -10 -10 -9 -9 -9 -8 -8 -7 ----------- Run | Scr Mat Min Mat Sto Gar Mat Gar Fac Matter Collected 2314 | 175 220 157 333 264 57 301 807 . Remotely . | . . . . . . . . . Salvage Created 3701 | . 227 270 223 1092 388 1018 483 . Parts 245 | . 21 13 17 77 22 53 42 . Haulers Intercepted 9 | . 1 . 2 5 . 1 . . Recyclers Shooed 2 | . . 1 . 1 . . . . Parts Field Recycled . | . . . . . . . . . Retrieved Matter . | . . . . . . . . . Parts Self-Destructed . | . . . . . . . . . Prevented . | . . . . . . . . . Kills | -11 -10 -10 -9 -9 -9 -8 -8 -7 ------- Run | Scr Mat Min Mat Sto Gar Mat Gar Fac Combat Hostiles Destroyed 106 | . 7 8 7 19 14 25 26 . Guns 11 | . 3 2 4 2 . . . . Cannons 45 | . . . . 10 10 12 13 . AOE 50 | . 4 6 3 7 4 13 13 . Classes Destroyed 16 | . 4 1 2 2 . 2 5 . Worker 7 | . . . . 4 . 3 . . Builder 3 | . . . . 1 . 2 . . Tunneler 2 | . . . 1 . . 1 . . Hauler 9 | . 1 . 2 5 . 1 . . Recycler 6 | . . 2 . 3 . 1 . . Mechanic 1 | . . . . . . 1 . . Watcher 2 | . 1 . . . . 1 . . Swarmer 41 | . 3 6 3 6 4 8 11 . Cutter 2 | . . . . . . . 2 . Grunt 41 | . 4 2 3 6 10 13 3 . Brawler 2 | . . . . . . . 2 . Duelist 4 | . . . . . . 1 3 . Protector 1 | . . . . . . . 1 . Sentry 13 | . . . 1 7 . 3 2 . Demolisher 1 | . . . . . . . 1 . Specialist 2 | . . . . . . . 2 . Best Kill Streak 10 | . 3 4 4 6 4 10 8 . Combat Bots Only 8 | . 3 3 4 5 4 7 8 . Max Kills in Single Turn 4 | . 3 2 2 4 2 3 3 . Gunslinging . | . . . . . . . . . Exploded 3 | . 3 2 2 3 2 3 3 . Melee . | . . . . . . . . . Uniques/NPCs Destroyed . | . . . . . . . . . Combat | -11 -10 -10 -9 -9 -9 -8 -8 -7 -------- Run | Scr Mat Min Mat Sto Gar Mat Gar Fac Damage Taken 3972 | . 308 238 181 310 342 1285 1308 . Core 581 | . 23 51 19 67 35 176 210 . Absorbed by Shields 3 | . . . . . 3 . . . Core Remaining (%) 67 | 100 . 70 . . 69 . 29 . Volleys Fired 268 | 1 24 16 25 64 31 50 57 . Largest 2 | 2 2 2 2 2 2 2 2 . Hottest 136 | 40 90 65 50 136 136 136 136 . Shots Fired 460 | 2 47 28 47 105 51 88 92 . Gun 126 | 2 46 24 44 10 . . . . Cannon 294 | . . . . 92 49 77 76 . Launcher 40 | . 1 4 3 3 2 11 16 . Special . | . . . . . . . . . Kinetic 164 | 2 34 17 44 10 . . 57 . Thermal 237 | . . . . 92 49 77 19 . Explosive 40 | . 1 4 3 3 2 11 16 . Electromagnetic 19 | . 12 7 . . . . . . Robot Hit Streak 12 | 1 6 8 8 7 8 12 6 . Robot Miss Streak 4 | 1 3 2 4 4 2 3 3 . Penetration Max . | . . . . . . . . . Secondary Targets 1 | . 1 . . . . . . . Max Gunslinging Chain 1 | . 1 . . . . . . . Shots Hit Robots 287 | 1 32 20 35 52 25 58 64 . Core Hits 187 | . 13 13 15 35 15 59 37 . Critical Kills . | . . . . . . . . . Critical Parts Destroyed . | . . . . . . . . . Critical Strikes 5 | . . . . . . . 5 . Blast 5 | . . . . . . . 5 . Melee Attacks 22 | . . . . . . 6 16 . Impact . | . . . . . . . . . Slashing . | . . . . . . . . . Piercing . | . . . . . . . . . Sneak Attacks 17 | . . . . . . 1 16 . Combat Hostiles . | . . . . . . . . . Follow-up Attacks . | . . . . . . . . . Damage Inflicted 9126 | 13 718 573 939 1616 784 2422 2061 . Guns 1309 | 13 395 244 568 89 . . . . Cannons 3769 | . . . . 931 515 1105 1218 . Explosions 4048 | . 323 329 371 596 269 1317 843 . Melee . | . . . . . . . . . Ramming . | . . . . . . . . . Kinetic 2160 | 13 261 163 568 89 . . 1066 . Thermal 2877 | . 174 . . 931 515 1105 152 . Explosive 3874 | . 149 329 371 596 269 1317 843 . Electromagnetic 215 | . 134 81 . . . . . . Impact . | . . . . . . . . . Slashing . | . . . . . . . . . Piercing . | . . . . . . . . . Highest Corruption 12 | . . . . 2 2 . 12 . Average Corruption 6 | . . . . 2 2 . 11 . Corruption Purged . | . . . . . . . . . Effects 66 | . . . . 8 8 . 50 . Message Errors 20 | . . . . 1 3 . 16 . Matter Fused 14 | . . . . . . . 14 . Heat Flow Errors 9 | . . . . 3 1 . 5 . Energy Discharges 7 | . . . . 2 2 . 3 . Parts Rejected 1 | . . . . . . . 1 . Data Loss (minor) 12 | . . . . 2 2 . 8 . Data Loss (major) 1 | . . . . . . . 1 . Alerts 1 | . . . . . . . 1 . Weapon Failures 1 | . . . . . . . 1 . Overload Shots . | . . . . . . . . . Overflow Damage 63 | . . 5 20 4 . 24 10 . Projectiles 4 | . . . . 4 . . . . Explosions 59 | . . 5 20 . . 24 10 . Melee . | . . . . . . . . . Knockbacks 8 | . . . . . . . 8 . Impact . | . . . . . . . . . Kinetic 6 | . . . . . . . 6 . Secondary 2 | . . . . . . . 2 . Self-Inflicted Damage 458 | . 93 13 . 28 52 80 192 . Shots 18 | . 3 2 . 1 2 4 6 . Rammed . | . . . . . . . . . Targets Rammed . | . . . . . . . . . Kicked . | . . . . . . . . . Crushed . | . . . . . . . . . Highest Temperature 300 | . 57 72 2 136 226 75 300 . Average Temperature 58 | . 28 32 2 26 56 17 110 . Received Heat Transfer 1285 | . 123 96 75 111 133 531 216 . Effects 1 | . . . . . . . 1 . Interference 1 | . . . . . . . 1 . Siege Activations . | . . . . . . . . . Robots Corrupted . | . . . . . . . . . Combat Hostiles . | . . . . . . . . . Parts Fried 1 | . . 1 . . . . . . Impact Corruptions . | . . . . . . . . . Robots Melted . | . . . . . . . . . Combat Hostiles . | . . . . . . . . . Parts Melted 5 | . 1 . . 3 1 . . . Heat Transferred 5010 | . 200 . . 1665 925 1998 222 . Parts Sabotaged . | . . . . . . . . . Parts Stolen . | . . . . . . . . . Parts Stripped . | . . . . . . . . . Power Chain Reactions 4 | . 4 . . . . . . . Missiles Intercepted . | . . . . . . . . . Alert | -11 -10 -10 -9 -9 -9 -8 -8 -7 ------- Run | Scr Mat Min Mat Sto Gar Mat Gar Fac Peak Influence 1368 | . 265 220 320 504 675 908 1368 . Initial 718 | . . 25 85 72 170 328 590 718 Average 575 | . 119 121 135 320 443 703 1106 . Maximum Alert Level 4 | . 1 1 1 2 2 3 4 . Low Security (%) 24 | 100 88 85 93 12 7 . . . Level 1 20 | . 11 14 6 60 28 7 . . Level 2 19 | . . . . 27 64 35 4 . Level 3 20 | . . . . . . 56 45 . Level 4 15 | . . . . . . . 50 . Level 5 . | . . . . . . . . . High Security . | . . . . . . . . . Max Security . | . . . . . . . . . Squads Dispatched 10 | . 1 . 2 1 . 6 . . Investigation 5 | . 1 . 1 1 . 2 . . Extermination . | . . . . . . . . . Reinforcement 4 | . . . 1 . . 3 . . Assault 1 | . . . . . . 1 . . Garrison . | . . . . . . . . . Intercept . | . . . . . . . . . Construction Impeded 1 | . . . . . . 1 . . Haulers Reinforced . | . . . . . . . . . Active Scanning Responses . | . . . . . . . . . Cargo Convoy Interrupts . | . . . . . . . . . Stealth | -11 -10 -10 -9 -9 -9 -8 -8 -7 --------- Run | Scr Mat Min Mat Sto Gar Mat Gar Fac Distress Signals 8 | . . . 4 1 . 3 . . Communications Jammed . | . . . . . . . . . Distress Signals . | . . . . . . . . . Times Spotted 141 | . 13 6 12 25 14 43 28 . Peak Tracking Total 7 | . 3 3 4 4 4 7 6 . Tactical Retreats 8 | . 2 . . . . 3 3 . Traps | -11 -10 -10 -9 -9 -9 -8 -8 -7 ------- Run | Scr Mat Min Mat Sto Gar Mat Gar Fac Traps Triggered 20 | . . . . 4 8 2 6 . Indirectly . | . . . . . . . . . Trap Hack Attempts . | . . . . . . . . . Triggered . | . . . . . . . . . Disarmed . | . . . . . . . . . Reprogrammed . | . . . . . . . . . Reused . | . . . . . . . . . Traps Extracted . | . . . . . . . . . Installed . | . . . . . . . . . Triggered . | . . . . . . . . . Machines | -11 -10 -10 -9 -9 -9 -8 -8 -7 ---------- Run | Scr Mat Min Mat Sto Gar Mat Gar Fac Machines Disabled 17 | . 2 1 1 6 2 3 2 . Max in Single Turn 1 | . 1 1 1 1 1 1 1 . Garrison Relay 4 | . . . . . 2 . 2 . Machines Sabotaged . | . . . . . . . . . Garrisons Compromised . | . . . . . . . . . Overloaded Fab Kills . | . . . . . . . . . Fab Network Shutdowns . | . . . . . . . . . Hacking | -11 -10 -10 -9 -9 -9 -8 -8 -7 --------- Run | Scr Mat Min Mat Sto Gar Mat Gar Fac Machines Accessed 16 | . 1 . 5 8 . 2 . . Terminals 14 | . 1 . 5 7 . 1 . . Fabricators . | . . . . . . . . . Repair Stations . | . . . . . . . . . Recycling Units . | . . . . . . . . . Scanalyzers . | . . . . . . . . . Garrison Access 2 | . . . . 1 . 1 . . Total Hacks 37 | . 5 . 13 15 . 4 . . Successful 15 | . 1 . 3 8 . 3 . . Failed 22 | . 4 . 10 7 . 1 . . Catastrophic 5 | . . . 3 1 . 1 . . Database Lockouts . | . . . . . . . . . Manual 23 | . 5 . 11 6 . 1 . . Terminals 35 | . 5 . 13 14 . 3 . . Fabricators . | . . . . . . . . . Repair Stations . | . . . . . . . . . Recycling Units . | . . . . . . . . . Scanalyzers . | . . . . . . . . . Garrison Access 2 | . . . . 1 . 1 . . Terminal Hacks 9 | . . . 2 5 . 2 . . Open Door 3 | . . . . 3 . . . . Branch Access Points 1 | . . . 1 . . . . . Unreport Threat 2 | . . . . 1 . 1 . . Recall Investigation 1 | . . . . . . 1 . . Zone Layout 2 | . . . 1 1 . . . . Fabricator Hacks . | . . . . . . . . . Repair Station Hacks . | . . . . . . . . . Recycling Unit Hacks . | . . . . . . . . . Scanalyzer . | . . . . . . . . . Garrison Access Hacks 2 | . . . . 1 . 1 . . Unlock Access 2 | . . . . 1 . 1 . . Unauthorized Hacks 4 | . 1 . 1 2 . . . . Terminals 4 | . 1 . 1 2 . . . . Track 3 | . . . 1 2 . . . . Operators 1 | . 1 . . . . . . . Fabricators . | . . . . . . . . . Repair Stations . | . . . . . . . . . Recycling Units . | . . . . . . . . . Scanalyzers . | . . . . . . . . . Garrison Access . | . . . . . . . . . Data Cores Recovered . | . . . . . . . . . Used . | . . . . . . . . . Hacking Detections 13 | . 1 . 5 6 . 1 . . Full Trace Events 2 | . 1 . 1 . . . . . Feedback Events . | . . . . . . . . . Feedback Blocked . | . . . . . . . . . Robot Schematics Acquired . | . . . . . . . . . Robots Built . | . . . . . . . . . Matter . | . . . . . . . . . Time . | . . . . . . . . . Total Robot Build Rating . | . . . . . . . . . Part Schematics Acquired . | . . . . . . . . . Parts Built . | . . . . . . . . . Matter . | . . . . . . . . . Time . | . . . . . . . . . Total Part Build Rating . | . . . . . . . . . Parts Repaired . | . . . . . . . . . Time . | . . . . . . . . . Parts Recycled . | . . . . . . . . . Recycled Matter . | . . . . . . . . . Retrieved Matter . | . . . . . . . . . Retrieved Components . | . . . . . . . . . Parts Scanalyzed . | . . . . . . . . . Part Schematics Acquired . | . . . . . . . . . Parts Damaged . | . . . . . . . . . Bothacking | -11 -10 -10 -9 -9 -9 -8 -8 -7 ------------ Run | Scr Mat Min Mat Sto Gar Mat Gar Fac Used RIF Installer 2 | . . . . . 1 . 1 . Program Shield 1 | . . . . . . . 1 . Robots Hacked 3 | . . . . . . 3 . . Non-combat . | . . . . . . . . . Combat 3 | . . . . . . 3 . . Robot Hacks Applied 4 | . . . . . . 4 . . find_garrison 1 | . . . . . . 1 . . reboot_system 1 | . . . . . . 1 . . streamctrl_high 1 | . . . . . . 1 . . formatsys_high 1 | . . . . . . 1 . . Relay Couplers Released 15 | . . . . . 7 . 8 . Machine Destruction 15 | . . . . . 7 . 8 . Attached 3 | . . . . . . 3 . . Robots Rewired 9 | . . . . . . . 9 . Allies Hacked . | . . . . . . . . . Hacks Repelled . | . . . . . . . . . Allies | -11 -10 -10 -9 -9 -9 -8 -8 -7 -------- Run | Scr Mat Min Mat Sto Gar Mat Gar Fac Total Allies 11 | . . . . . . 2 9 . Largest Group 7 | . . . . . . 1 7 . Highest-Rated Group 124 | . . . . . . 82 124 . Highest-Rated Ally 82 | . . . . . . 82 24 . Total Orders . | . . . . . . . . . Ally Attacks 58 | . . . . . . 18 40 . Total Damage 1088 | . . . . . . 507 581 . Kills 17 | . . . . . . 7 10 . Allies Corrupted . | . . . . . . . . . Allies Melted . | . . . . . . . . . Intel | -11 -10 -10 -9 -9 -9 -8 -8 -7 ------- Run | Scr Mat Min Mat Sto Gar Mat Gar Fac Robot Analysis Total . | . . . . . . . . . Derelict Logs Recovered . | . . . . . . . . . Drone Launches . | . . . . . . . . . Drone Recoveries . | . . . . . . . . . Exploration | -11 -10 -10 -9 -9 -9 -8 -8 -7 ------------- Run | Scr Mat Min Mat Sto Gar Mat Gar Fac Turns Passed 6035 | 55 414 227 671 1356 771 700 1841 . Spaces Moved 3222 | 41 323 151 567 805 488 275 572 . Core 2 | 2 . . . . . . . . Treads 226 | . . 16 . 139 . 24 47 . Legs 415 | . . . . . . . 415 . Wheels 2579 | 39 323 135 567 666 488 251 110 . Hover . | . . . . . . . . . Flight . | . . . . . . . . . Fastest Speed 50 | 50 100 100 95 95 105 125 155 . Average Speed 144 | 97 100 106 95 132 120 154 264 . Slowest Speed 680 | 100 100 160 100 260 150 260 680 . Overloaded Moves . | . . . . . . . . . Propulsion Burnouts . | . . . . . . . . . Robots Hopped . | . . . . . . . . . Cave-ins Triggered . | . . . . . . . . . Exploration Rate (%) 43 | 5 53 30 49 91 63 39 63 1 Regions Visited 8 Branch Regions 2 Pre-discovered Areas 1 | . . 1 . . . . . . Known Exits Taken 3 | . . . 1 1 . 1 . . Unknown Exits Taken 3 | 1 1 1 . . . . . . Scrap Searched . | . . . . . . . . . Spaces Dug 10 | . . . . . 10 . . . Terrain Destroyed 327 | . 25 40 11 19 16 103 113 . Melee . | . . . . . . . . . Projectile 1 | . . . . . . . 1 . AOE 326 | . 25 40 11 19 16 103 112 . Terrain Rammed . | . . . . . . . . . Walls Destroyed . | . . . . . . . . . Machines Disabled . | . . . . . . . . . Actions | -11 -10 -10 -9 -9 -9 -8 -8 -7 --------- Run | Scr Mat Min Mat Sto Gar Mat Gar Fac Total 4090 | 51 364 186 647 993 619 445 785 . Wait 263 | . 5 12 43 57 27 76 43 . Move 3216 | 40 322 150 566 805 487 275 571 . Hop . | . . . . . . . . . Pick Up 43 | 4 4 1 3 12 6 6 7 . Fast Attach 28 | 6 1 . . 8 . 3 10 . Attach 18 | . 2 2 . . 1 8 5 . Detach 3 | . . . . . . 1 2 . Swap 61 | . 5 5 8 12 3 18 10 . Drop 25 | . 1 . 2 19 . 1 2 . Fire 268 | 1 24 16 25 64 31 50 57 . Melee 22 | . . . . . . 6 16 . Ram . | . . . . . . . . . Kick . | . . . . . . . . . Crush . | . . . . . . . . . Escape Stasis 111 | . . . . 16 64 . 31 . Rewire 32 | . . . . . . 1 31 . Trap . | . . . . . . . . . Miscellaneous . | . . . . . . . . . Route ------- -11/Scrapyard -10/Materials (discovered 3 exits: *Mat x2 / [*Min]) -10/Mines (discovered 2 exits: *Mat x2) -9/Materials (discovered 4 exits: *Mat / Min x2 / *Sto) -9/Storage (discovered 2 exits: *Mat / Gar) -9/Garrison (discovered 3 exits: *Mat x3) -8/Materials (discovered 2 exits: [*Fac] / Gar) -8/Garrison (discovered 3 exits: [*Fac x3]) -7/Factory History --------- Turn | Location | Event 15 | -11/Scrapyard | Discovered new exit (range 14) 56 | -11/Scrapyard | Entered Materials 147 | -10/Materials | Discovered new exit (range 8) 212 | -10/Materials | Discovered new exit (range 12) 302 | -10/Materials | Discovered new exit (range 16) 309 | -10/Materials | Build established: Mutant 470 | -10/Materials | Entered Mines 477 | -10/Mines | Met a Derelict bent on vengeance 477 | -10/Mines | Discovered new exit (range 14) 682 | -10/Mines | Discovered new exit (range 13) 688 | -10/Mines | Learned location of Storage (-9) 697 | -10/Mines | Entered Materials 697 | -9/Materials | Evolved 2 slots: Utility x2 850 | -9/Materials | Discovered new exit (range 11) 851 | -9/Materials | Identified exit to Mines 851 | -9/Materials | Identified exit to Storage 1368 | -9/Materials | Entered Storage 1615 | -9/Storage | Discovered new exit (range 16) 2724 | -9/Storage | Identified exit to Garrison 2724 | -9/Storage | Entered Garrison 2765 | -9/Garrison | Triggered checkpoint 2908 | -9/Garrison | Discovered new exit (range 11) 2959 | -9/Garrison | Triggered checkpoint 2999 | -9/Garrison | Discovered new exit (range 14) 3051 | -9/Garrison | Triggered checkpoint 3117 | -9/Garrison | Discovered new exit (range 12) 3134 | -9/Garrison | Installed Relay Interface Framework 3162 | -9/Garrison | Triggered checkpoint 3236 | -9/Garrison | Garrison Relay disabled 3387 | -9/Garrison | Triggered checkpoint 3432 | -9/Garrison | Garrison Relay disabled 3495 | -9/Garrison | Entered Materials 3495 | -8/Materials | Evolved 2 slots: Propulsion x1, Utility x1 3596 | -8/Materials | Destroyed 7 combat bots 3851 | -8/Materials | Lost 3 parts (1n2u) 3895 | -8/Materials | First assault squad dispatched 3919 | -8/Materials | Build established: Bothacker-Mutant 4091 | -8/Materials | Discovered new exit (range 11) 4195 | -8/Materials | Identified exit to Garrison 4195 | -8/Materials | Entered Garrison 4199 | -8/Garrison | Triggered checkpoint 4231 | -8/Garrison | Triggered checkpoint 4237 | -8/Garrison | Triggered checkpoint 4305 | -8/Garrison | Destroyed 8 combat bots 4332 | -8/Garrison | Garrison Relay disabled 4334 | -8/Garrison | Lost 3 parts (1n2u) 4398 | -8/Garrison | Garrison Relay disabled 4451 | -8/Garrison | Core integrity fell below 50% 4487 | -8/Garrison | Lost 4 parts (2n1u1w) 4729 | -8/Garrison | System corruption reached 10% 5106 | -8/Garrison | Triggered checkpoint 5112 | -8/Garrison | Triggered checkpoint 5216 | -8/Garrison | Triggered checkpoint 5330 | -8/Garrison | Lost 3 parts (1n2u) 5397 | -8/Garrison | Discovered new exit (range 14) 5587 | -8/Garrison | Triggered checkpoint 5719 | -8/Garrison | Discovered new exit (range 15) 5985 | -8/Garrison | Discovered new exit (range 10) 6025 | -8/Garrison | Expanded RIF knowledge: Program Shield 6036 | -8/Garrison | Entered Factory 6036 | -7/Factory | Evolved 2 slots: Utility x2 6036 | -7/Factory | Self-destructed Last Messages --------------- 05721_ System corrupted: Matter fused (-9). 05736_ System corrupted: Matter fused (-6). 05763_ System corrupted: Component data lost. 05845_ System corrupted: Substantial component data lost. 05860_ BVLS4809HZFT>W=YVNCTUIN 05893_ Acquired 44 matter. 05911_ System corrupted: Heat flow error (+214). 05928_ System corrupted: Matter fused (-5). 05947_ System corrupted: Matter fused (-10). 05974_ System corrupted: Matter fused (-5). 05985_ EXIT=FOUND 05995_ System corrupted: Energy discharge (-42). 06020_ System corrupted: Heat flow error (+291). 06022_ Initiating installation procedure... 06025_ Expanded RIF knowledge: Program Shield. 06036_ Attempting to access garrison exit controls... RIF authorized. PARAMETERS=UTILITY+2 LOCATION=UNKNOWN GOAL=ESCAPE Map ----- +----------------------------------------------------+ | ??????????????????????????????????????????? | | ??????????????????????????????????????????? | | ??????????????????????????????????????????? | | ??????????????????????????????????????????? | | ??????????????????????????????????????????? | | ??????????????????????????????????????????? | | ??????????????????????????????????????????? | | ??????????????????????????????????????????? | | ??????????????????????????????????????????? | | ??????????????????????????????????????????? | | ???????????????? ???????????????????????? | | ??????????????" ???????????????????????? | | ??????????????" """"???????????????????? | | ????????????? " """""" ??????????????? | | ??????????????" ???????????????? | | ?????????????? ????????????????? | | ?????????????? ????????????????? | | ??????????????? ?????????????????? | | ??????????????? ??????????????????? | | ???????????????# #??????????????????? | | ???????????????# #??????????????????? | | ???????????????# #??????????????????? | | ???????????????# #??????????????????? | | ??????????###### #??????????????????? | | ??????????# #??????????????????? | | ??????????# @ #??????????????????? | | ??????????# ????????????? | | ??????????# ????????? | | ??????????# "?????????? | | ??????????# "?????????? | | ??????????# *!! ??????????? | | ??????????# ###+##### *! ??????????? | | ??????????# ?????????? *! ??????????? | | ??????????# ??????????? ???????????? | | ??????????# ????????????? ???????????? | | ??????????+ ?????????????? ????????????? | | ??????????# ????????????????????????????? | | ??????????# ????????????????????????????? | | ???????????##?????????????????????????????? | | ??????????????????????????????????????????? | | ??????????????????????????????????????????? | | ??????????????????????????????????????????? | | ??????????????????????????????????????????? | | ??????????????????????????????????????????? | | ??????????????????????????????????????????? | | ??????????????????????????????????????????? | | ??????????????????????????????????????????? | | ??????????????????????????????????????????? | | ??????????????????????????????????????????? | | ??????????????????????????????????????????? | +----------------------------------------------------+ Best States ------------- Heat Dissipation 55 Energy Generation 17 Energy Capacity 280 Matter Stores 300 Matter Capacity 300 Sight Range 16 Terrain Scan Density 10 Armor Coverage 375 Core Shielding 30 Evasion (%) 41 Recoil Reduction 3 Relay Coupler Types 42 Relay Coupler Value 2 Item Schematics ----------------- None Robot Schematics ------------------ None Fabricated ------------ Nothing Alien Tech Used ----------------- None Achievements -------------- None Challenges ------------ None Game ------ Seed CooledShadingFirepult Manual? 0 Play Time 00:42:13 Cumulative 233.6 hours Start 2021.09.18 @ 18:36:40 End 2021.09.19 @ 18:09:30 Sessions 3 Manual Loads 0 Difficulty Rogue Special Mode None Game No. 299 Rogue 212 Adventurer 87 Explorer 0 Win Type - Total 5 Types 3/0/1/1/0/0/0/0/0 Lore% 71 Gallery% 79 Achievement% 67 Wizard Run 0 Options --------- ASCII 0 Keyboard 1 Movement Numpad Keybinds 0 Fullscreen 1 Font 18/Smallcaps Map View 76x50 Tactical HUD 1 Map Filters NONE Filters NONE Steam 1 RUN: d3a88f2b-b1c7-499a-a686-741ee599c32e